bitfinex/quotes_SOLUSD_20240612
["timestamp","ask_amount","ask_price","bid_price","bid_amount"]
[1718195464090,100.0,156.78,156.56,29.912154]
[1718195464296,100.0,156.84,156.66,5.09036074]
[1718195464520,100.0,156.94,156.69,5.09036074]
[1718195464815,18.5846,156.97,156.77,5.09036074]
[1718195465116,16.2275,156.97,156.67,5.09036074]
[1718195465305,16.2275,156.97,156.66,25.525718]
[1718195465306,100.0,156.87,156.66,25.525718]
[1718195465616,0.10425283,156.86,156.56,29.912154]
[1718195465821,16.2275,156.97,156.66,5.09036074]
[1718195466123,6.4493,156.99,156.77,100.0]
[1718195466300,6.4493,156.99,156.81,100.0]
[1718195466494,108.996,157.0,156.68,100.0]
[1718195466728,108.996,157.0,156.82,100.0]
[1718195466897,108.996,157.0,156.9,5.09036074]
[1718195467096,108.996,157.0,156.93,100.0]
[1718195467292,108.996,157.0,156.99,15.09036074]
[1718195467598,1.6976997,157.11,157.1,105.09036074]
[1718195467800,1.5176997,157.11,157.1,105.09036074]
[1718195468001,1.5176997,157.11,157.1,5.09036074]
[1718195468400,1.5176997,157.11,156.89,100.0]
[1718195468600,1.5176997,157.11,157.1,100.0]
[1718195468819,8.3704,157.38,157.08,100.0]
[1718195469019,100.0,157.36,157.07,5.09036074]
[1718195469194,100.0,157.27,157.07,5.09036074]
[1718195469395,2.3547,157.14,157.02,5.09036074]
[1718195469617,4.704,157.32,157.02,5.09036074]
[1718195469618,103.77471297,157.33,157.02,5.09036074]
[1718195469795,6.23329607,157.38,157.23,5.09036074]
[1718195469992,6.0194,157.44,157.39,5.09036074]
[1718195470218,6.0194,157.44,157.41,5.09036074]
[1718195470424,6.0194,157.44,157.43,5.09036074]
[1718195470795,6.0194,157.44,157.4,5.09036074]
[1718195470998,4.94926395,157.58,157.3,5.09036074]
[1718195471220,100.0,157.56,157.39,5.09036074]
[1718195471426,100.0,157.56,157.26,100.0]
[1718195471705,0.03962469,157.58,157.0,55.7172]
[1718195471706,478.44,157.5,157.43,5.09036074]
[1718195471909,313.84273847,157.5,157.44,0.17]
[1718195472122,135.84273847,157.5,157.49,100.0]
[1718195472332,128.72273847,157.5,157.49,100.0]
[1718195472491,121.60273847,157.5,157.42,0.17]
[1718195472693,121.60273847,157.5,157.41,5.09036074]
[1718195472915,121.60273847,157.5,157.42,0.17]
[1718195473116,121.60273847,157.5,157.47,0.17]
[1718195473292,108.74470955,157.5,157.49,115.26036074]
[1718195473499,0.03962469,157.58,157.56,100.0]
[1718195473724,0.03962469,157.58,157.57,5.49865198]
[1718195473924,1.6976997,157.73,157.64,100.0]
[1718195474228,1.6976997,157.73,157.68,100.0]
[1718195474401,1.6976997,157.73,157.59,100.0]
[1718195474601,1.6976997,157.73,157.52,4.98865198]
[1718195474801,1.6976997,157.73,157.62,100.0]
[1718195475107,1.6976997,157.73,157.67,4.98865198]
[1718195475900,1.6976997,157.73,157.68,0.17]
[1718195476095,1.6976997,157.73,157.68,100.17]
[1718195476303,1.6976997,157.73,157.53,100.0]
[1718195476619,2.3467,157.67,157.41,4.98865198]
[1718195476820,100.0,157.67,157.41,4.98865198]
[1718195477135,100.0,157.53,157.34,4.98865198]
[1718195477421,100.0,157.59,157.34,4.98865198]
[1718195477619,2.3488,157.53,157.34,4.98865198]
[1718195477919,100.0,157.55,157.35,4.98865198]
[1718195478127,100.0,157.6,157.36,2.26636002]
[1718195478328,40.87,157.82,157.37,100.0]
[1718195478501,2.3447,157.81,157.53,4.98865198]
[1718195478699,1.1976997,157.73,157.54,100.0]
[1718195478910,1.1976997,157.73,157.61,100.0]
[1718195479127,1.1976997,157.73,157.66,100.0]
[1718195479311,1.1976997,157.73,157.72,4.98865198]
[1718195479724,1.1976997,157.73,157.67,100.0]
[1718195480024,1.1976997,157.73,157.55,4.98865198]
[1718195480225,1.1976997,157.73,157.58,4.98865198]
[1718195480535,23.4988997,157.73,157.49,4.98865198]
[1718195480823,23.4988997,157.73,157.41,100.0]
[1718195480824,5.01134802,157.66,157.41,4.98865198]
[1718195481025,5.01134802,157.66,157.39,4.98865198]
[1718195481026,6.0632,157.59,157.39,4.98865198]
[1718195481332,100.0,157.54,157.39,4.98865198]
[1718195481514,45.0,157.53,157.3,104.98865198]
[1718195481707,100.0,157.48,157.25,4.98865198]
[1718195481910,100.0,157.45,157.25,4.98865198]
[1718195482115,20.17,157.47,157.25,4.98865198]
[1718195482116,100.0,157.41,157.33,25.419971]
[1718195482310,5.01134802,157.67,157.34,4.98865198]
[1718195482510,140.87,157.57,157.26,4.98865198]
[1718195482813,15.6984,157.53,157.37,18.44379212]
[1718195483130,100.0,157.41,157.21,4.98865198]
[1718195483309,2.3492,157.5,157.27,18.443792]
[1718195483623,100.0,157.44,157.27,18.443792]
[1718195483820,0.17,157.34,157.15,4.98865198]
[1718195484023,0.17,157.34,157.18,18.443792]
[1718195484209,5.01134802,157.45,157.18,18.443792]
[1718195484415,0.51,157.44,157.18,118.443792]
[1718195484610,0.17,157.43,157.18,118.443792]
[1718195484822,0.17,157.43,157.19,100.0]
[1718195485131,15.6984,157.53,157.19,100.0]
[1718195485132,100.0,157.51,157.19,100.0]
[1718195485336,5.01134802,157.52,157.18,18.443792]
[1718195485521,5.01134802,157.52,157.27,100.0]
[1718195485831,6.3183,157.56,157.35,4.98865198]
[1718195486517,5.01134802,157.62,157.34,100.0]
[1718195486825,15.5012,157.66,157.36,5.15865198]
[1718195487026,15.5012,157.66,157.48,4.98865198]
[1718195487539,100.0,157.55,157.36,4.98865198]
[1718195487841,1.10526749,157.31,157.13,4.98865198]
[1718195488030,2.353,157.24,157.15,4.98865198]
[1718195488232,100.0,157.17,157.1,4.98865198]
[1718195488425,16.0853,157.23,157.03,4.80865198]
[1718195488426,102.355,157.11,157.03,4.80865198]
[1718195488625,100.0,157.04,157.02,18.443792]
[1718195488826,2.3562,157.03,156.95,0.5]
[1718195489040,100.0,157.11,156.95,0.5]
[1718195489332,60.57,157.25,156.95,100.5]
[1718195489333,116.0853,157.23,156.95,100.5]
[1718195489639,5.19134802,157.17,156.95,0.5]
[1718195489829,2.3559,157.05,156.95,0.5]
[1718195490013,100.0,157.03,156.95,0.5]
[1718195490213,100.0,157.08,156.95,0.5]
[1718195490443,5.19134802,157.17,157.0,4.80865198]
[1718195490647,100.0,157.28,157.19,4.80865198]
[1718195490850,1.10526749,157.31,157.29,3.03556216]
[1718195491136,1.10526749,157.31,156.95,0.5]
[1718195491137,1.10526749,157.31,157.07,3.03556216]
[1718195491320,40.87,157.24,156.96,100.0]
[1718195491514,100.0,157.12,156.95,0.5]
[1718195491736,100.0,157.13,156.95,0.5]
[1718195491922,40.87,157.24,156.95,0.5]
[1718195492117,2.3553,157.09,156.95,0.5]
[1718195492317,2.3558,157.06,156.95,0.5]
[1718195492623,100.0,157.02,156.85,3.03556216]
[1718195492816,6.1696,157.07,156.85,3.03556216]
[1718195492817,100.0,157.06,156.85,3.03556216]
[1718195493021,2.358,156.91,156.85,3.03556216]
[1718195493220,30.8809,157.07,156.85,3.03556216]
[1718195493221,0.17,156.9,156.85,3.03556216]
[1718195493538,102.3588,156.86,156.83,3.03556216]
[1718195493836,6.5366,156.81,156.65,3.03556216]
[1718195494047,6.5366,156.81,156.64,4.73326186]
[1718195494048,20.17,156.8,156.64,4.73326186]
[1718195494337,0.17,156.8,156.68,3.03556216]
[1718195494537,20.34,156.8,156.65,3.03556216]
[1718195494744,100.0,156.75,156.64,1.6976997]
[1718195494919,2.5319,156.65,156.64,1.6976997]
[1718195495241,0.51,156.74,156.66,3.03556216]
[1718195495412,0.17,156.73,156.66,3.03556216]
[1718195495612,106.3666,156.81,156.66,3.03556216]
[1718195495813,100.0,156.89,156.66,3.03556216]
[1718195496038,6.3815,156.93,156.71,100.0]
[1718195496238,6.3815,156.93,156.64,1.6976997]
[1718195496239,15.7989,156.99,156.78,100.0]
[1718195496436,0.92,156.82,156.8,100.0]
[1718195496638,0.38,156.82,156.8,100.0]
[1718195496839,0.38,156.82,156.81,13.03556216]
[1718195497244,6.96443784,157.15,156.82,100.0]
[1718195497534,200.0,157.05,156.78,3.03556216]
[1718195497717,4.7117,157.06,156.71,100.0]
[1718195497718,2.3569,156.99,156.71,100.0]
[1718195497919,2.3399289,157.04,156.64,1.6976997]
[1718195497920,2.3399289,157.04,156.8,100.0]
[1718195498143,115.5839,157.17,156.82,100.0]
[1718195498341,100.0,157.07,156.78,3.03556216]
[1718195498520,100.0,156.94,156.78,3.03556216]
[1718195498838,100.0,156.94,156.75,3.03556216]
[1718195498839,100.0,156.9,156.75,3.03556216]
[1718195499039,115.6468,156.93,156.64,1.6976997]
[1718195499243,115.6468,156.93,156.74,3.03556216]
[1718195499244,2.3582,156.9,156.74,3.03556216]
[1718195499416,100.0,156.84,156.74,3.03556216]
[1718195499613,14.7166,156.9,156.74,3.03556216]
[1718195499614,0.17,156.81,156.74,3.03556216]
[1718195499814,0.51,156.81,156.74,3.03556216]
[1718195500037,2.33931498,156.8,156.74,3.03556216]
[1718195500243,0.17,156.79,156.74,3.03556216]
[1718195500552,0.17,156.79,156.64,1.6976997]
[1718195500553,2.33870719,156.78,156.7,3.03556216]
[1718195500751,0.34,156.77,156.7,3.03556216]
[1718195501044,2.50810546,156.76,156.73,3.03556216]
[1718195501220,0.34,156.75,156.73,3.03556216]
[1718195501415,2.33810546,156.76,156.73,3.03556216]
[1718195501845,0.17,156.75,156.73,3.03556216]
[1718195502026,4.69800973,156.74,156.73,3.03556216]
[1718195502350,2.33750973,156.74,156.73,3.03556216]
[1718195502537,2.33750973,156.74,156.68,100.0]
[1718195502848,100.0,157.02,156.9,10.0]
[1718195503020,22.5863,157.07,156.9,10.0]
[1718195503222,6.6521,157.07,156.9,10.0]
[1718195503530,25.49979,157.04,156.9,10.0]
[1718195503846,15.9342,157.21,156.96,100.0]
[1718195504041,6.0725,157.22,157.07,10.0]
[1718195504422,2.3399289,157.21,157.07,10.0]
[1718195504929,100.0,157.11,156.89,10.0]
[1718195505250,100.0,157.11,155.08,461.25825931]
[1718195505251,60.14674126,156.59,155.08,461.25825931]
[1718195505552,47.1553,156.7,156.69,100.0]
[1718195505724,45.53606056,156.7,156.68,100.0]
[1718195506042,45.53606056,156.7,156.56,1.10887037]
[1718195506541,45.53606056,156.7,156.59,100.0]
[1718195506750,6.414,156.93,156.6,2.27735896]
[1718195507061,2.50639806,156.92,156.6,2.27735896]
[1718195507355,100.17,156.87,156.56,1.10887037]
[1718195507531,0.17,156.79,156.52,0.05369153]
[1718195507850,0.51,156.79,156.52,0.05369153]
[1718195508022,100.0,156.9,156.55,100.0]
[1718195508346,100.0,156.8,156.48,100.0]
[1718195508529,100.0,156.77,156.49,1.10971604]
[1718195508738,100.0,156.77,156.43,100.0]
[1718195509037,2.3617,156.67,156.44,1.11011326]
[1718195509237,0.17,156.6,156.36,100.0]
[1718195509460,10.0,156.61,156.43,100.0]
[1718195509625,10.0,156.61,156.4,1.1103158]
[1718195509829,10.0,156.61,156.38,100.0]
[1718195510038,10.0,156.61,156.47,100.0]
[1718195510252,10.0,156.61,156.53,100.0]
[1718195510542,10.0,156.79,156.54,100.0]
[1718195510753,10.0,156.76,156.5,100.0]
[1718195510940,10.0,156.79,156.51,100.0]
[1718195511125,2.3618,156.66,156.53,25.536003]
[1718195511331,10.0,156.69,156.53,25.536003]
[1718195511529,2.3615,156.68,156.4,101.11029576]
[1718195511743,2.5316,156.68,156.41,100.0]
[1718195511957,0.17,156.66,156.41,25.549652]
[1718195512264,0.17,156.61,156.35,100.0]
[1718195512431,0.17,156.59,156.35,100.0]
[1718195512632,10.0,156.6,156.34,1.11089841]
[1718195512633,10.0,156.74,156.44,100.0]
[1718195512957,10.0,156.66,156.43,100.0]
[1718195513147,100.0,156.66,156.36,25.549652]
[1718195513351,10.0,156.62,156.39,100.0]
[1718195513558,10.0,156.62,156.43,100.0]
[1718195513727,10.0,156.62,156.41,100.0]
[1718195514062,10.0,156.62,156.36,45.249652]
[1718195514063,10.0,156.62,156.51,100.0]
[1718195514242,10.0,156.75,156.61,100.0]
[1718195514565,10.0,156.79,156.7,100.0]
[1718195514726,12.33639806,156.92,156.71,45.68]
[1718195514926,12.33639806,156.92,156.71,60.85246029]
[1718195515127,12.33639806,156.92,156.71,45.68]
[1718195515345,2.33639806,156.92,156.78,0.17]
[1718195515566,10.0,157.01,156.84,100.0]
[1718195515865,16.7907988,157.11,156.9,0.17]
[1718195516030,0.1,157.0,156.97,100.0]
[1718195516226,0.1,157.0,156.98,20.0]
[1718195516424,0.1,157.0,156.91,0.17]
[1718195516653,0.1,157.0,156.92,0.17]
[1718195516857,0.1,157.0,156.92,145.0]
[1718195517043,0.1,157.0,156.93,20.0]
[1718195517241,0.1,157.0,156.94,45.0]
[1718195517443,0.1,157.0,156.82,0.17]
[1718195517644,0.1,157.0,156.82,20.34]
[1718195517843,0.1,157.0,156.75,116.790799]
[1718195518046,1.63376083,156.99,156.75,16.790799]
[1718195518350,0.1,157.0,156.75,16.790799]
[1718195518549,20.1,157.0,156.75,16.790799]
[1718195518743,20.1,157.0,156.75,116.790799]
[1718195518945,20.1,157.0,156.75,16.790799]
[1718195519265,10.1,157.0,156.75,116.790799]
[1718195519579,10.1,157.0,156.85,100.0]
[1718195519737,10.1,157.0,156.78,100.0]
[1718195519933,10.1,157.0,156.75,16.790799]
[1718195520155,10.0,156.9,156.75,16.790799]
[1718195520335,10.0,156.88,156.75,16.790799]
[1718195520539,10.0,156.84,156.67,100.0]
[1718195520845,5.0930991,156.84,156.7,100.0]
[1718195521048,5.0930991,156.84,156.78,100.0]
[1718195521237,0.1,157.0,156.82,200.0]
[1718195521440,0.1,157.0,156.89,100.0]
[1718195521648,0.1,157.0,156.8,100.0]
[1718195521839,10.0,156.97,156.8,100.0]
[1718195522038,0.1,157.0,156.84,100.0]
[1718195522265,0.1,157.0,156.9,100.0]
[1718195522471,0.1,157.0,156.91,20.34]
[1718195522648,0.1,157.0,156.96,100.0]
[1718195522835,0.03974637,157.1,157.01,100.0]
[1718195523039,0.03974637,157.1,157.04,100.0]
[1718195523237,0.9776997,157.11,157.1,138.48]
[1718195523538,10.0,157.33,157.1,138.48]
[1718195523539,10.0,157.35,157.2,100.0]
[1718195523741,10.0,157.35,157.22,100.0]
[1718195523945,10.0,157.36,157.27,100.0]
[1718195524145,11.6976997,157.42,157.28,20.0]
[1718195524465,10.0,157.37,157.28,20.0]
[1718195524765,10.0,157.4,157.28,20.0]
[1718195524955,10.0,157.37,157.2,100.0]
[1718195525143,10.0,157.37,157.24,100.0]
[1718195525343,10.0,157.37,157.25,65.68]
[1718195525644,11.6976997,157.42,157.3,100.0]
[1718195525845,11.6976997,157.42,157.31,45.0]
[1718195526062,11.6976997,157.42,157.21,2.26852244]
[1718195526266,10.0,157.38,157.21,100.0]
[1718195526562,1.6976997,157.42,157.17,100.0]
[1718195526738,1.6976997,157.42,157.22,100.0]
[1718195526941,1.6976997,157.42,157.3,100.0]
[1718195527179,10.0,157.63,157.41,100.0]
[1718195527474,8.9912,157.7,157.53,100.0]
[1718195527647,10.0,157.65,157.42,20.0]
[1718195527864,10.0,157.65,157.43,45.0]
[1718195528040,10.0,157.65,157.44,20.0]
[1718195528239,10.0,157.65,157.51,100.0]
[1718195529658,10.0,157.6,157.46,20.0]
[1718195530039,10.0,157.6,157.43,20.0]
[1718195530268,10.0,157.58,157.37,20.0]
[1718195530564,10.0,157.6,157.5,100.0]
[1718195530749,10.0,157.65,157.46,100.0]
[1718195530941,10.0,157.65,157.35,38.31]
[1718195530942,10.0,157.65,157.49,100.0]
[1718195531141,10.0,157.65,157.45,100.0]
[1718195531369,10.0,157.65,157.35,38.31]
[1718195531370,10.0,157.65,157.49,100.0]
[1718195531665,10.0,157.65,157.46,100.0]
[1718195531866,10.0,157.59,157.38,100.0]
[1718195532056,10.0,157.59,147.9,5.49]
[1718195532057,10.0,157.61,157.33,100.0]
[1718195532256,10.0,157.59,157.35,100.0]
[1718195532568,10.0,157.56,157.34,100.0]
[1718195532873,10.0,157.49,157.32,100.0]
[1718195533067,10.0,157.48,157.29,100.0]
[1718195533242,0.17,157.47,157.28,100.0]
[1718195533448,0.17,157.48,157.31,100.0]
[1718195533761,10.0,157.53,157.34,100.0]
[1718195533966,0.17,157.52,157.29,110.0]
[1718195534168,2.8589,157.52,157.29,10.0]
[1718195534473,0.17,157.48,157.29,10.0]
[1718195534768,0.51,157.48,157.3,100.0]
[1718195534975,8.6214,157.49,157.29,10.0]
[1718195535266,10.0,157.55,157.43,100.0]
[1718195535474,32.4863,157.68,157.46,100.0]
[1718195535475,10.0,157.63,157.46,100.0]
[1718195535681,10.0,157.64,157.38,100.0]
[1718195535880,10.0,157.59,157.42,100.0]
[1718195536059,10.0,157.57,157.38,100.0]
[1718195536260,22.4863,157.68,157.46,100.0]
[1718195536261,10.0,157.59,157.46,100.0]
[1718195536566,10.0,157.59,157.47,20.51]
[1718195536770,10.0,157.59,157.48,20.0]
[1718195537070,10.0,157.64,157.49,100.51]
[1718195537267,10.0,157.62,157.47,0.17]
[1718195537468,10.0,157.62,157.49,100.0]
[1718195537647,10.0,157.64,157.6,0.17]
[1718195537847,10.0,157.68,157.6,20.0]
[1718195538162,10.0,157.69,157.6,20.0]
[1718195538366,10.0,157.65,157.6,20.0]
[1718195538564,10.0,157.65,157.55,20.0]
[1718195538871,10.0,157.58,157.42,100.0]
[1718195539071,10.0,157.58,157.54,10.0]
[1718195539661,10.0,157.58,157.42,100.0]
[1718195540054,10.0,157.58,157.41,10.0]
[1718195540473,0.34,157.57,157.41,10.0]
[1718195540769,10.0,157.48,157.41,10.0]
[1718195540947,10.0,157.42,157.25,100.0]
[1718195541150,10.0,157.37,157.24,100.0]
[1718195541360,10.0,157.41,157.31,100.0]
[1718195541573,10.0,157.41,157.26,21.8374]
[1718195541773,10.0,157.42,157.26,21.8374]
[1718195541978,10.0,157.28,157.11,100.0]
[1718195542176,10.0,157.28,157.13,100.0]
[1718195542377,10.0,157.28,156.99,100.0]
[1718195542590,10.0,157.26,157.04,100.0]
[1718195542907,10.0,157.26,156.74,2.9259]
[1718195542908,10.0,157.37,157.2,100.0]
[1718195543062,8.6022,157.46,157.27,100.0]
[1718195543246,10.0,157.49,157.33,100.0]
[1718195543452,10.0,157.51,157.38,100.0]
[1718195543648,10.0,157.51,157.24,19.7]
[1718195543649,10.0,157.51,157.43,100.0]
[1718195543962,10.0,157.63,157.4,100.0]
[1718195544271,2.3399289,157.62,157.5,100.0]
[1718195544472,2.3399289,157.62,157.55,0.17]
[1718195544672,2.3399289,157.62,157.6,0.17]
[1718195544974,2.3399289,157.62,157.59,100.17]
[1718195545164,10.0,157.72,157.61,100.17]
[1718195545367,10.0,157.72,157.68,100.0]
[1718195545670,10.0,157.72,157.63,0.17]
[1718195545971,10.0,157.72,157.63,20.0]
[1718195546179,10.0,157.65,157.22,34.63989791]
[1718195546368,10.0,157.57,157.4,100.0]
[1718195546687,10.0,157.57,157.49,100.0]
[1718195546888,10.0,157.57,157.48,100.0]
[1718195547090,1.6976997,157.73,157.52,100.0]
[1718195547264,4.0376286,157.73,157.48,100.0]
[1718195547468,4.0376286,157.73,157.53,100.0]
[1718195547674,4.0376286,157.73,157.5,100.0]
[1718195547901,1.6976997,157.73,157.45,10.0]
[1718195548072,10.0,157.7,157.45,100.0]
[1718195548270,10.0,157.7,157.46,100.0]
[1718195548593,10.0,157.7,157.41,100.0]
[1718195548770,10.0,157.7,157.44,100.0]
[1718195549095,20.0,157.69,157.48,100.0]
[1718195549265,20.0,157.69,157.43,100.0]
[1718195549592,20.0,157.69,157.44,100.0]
[1718195549794,10.0,157.7,157.48,100.0]
[1718195550086,2.3399289,157.69,157.44,100.0]
[1718195550389,2.3399289,157.69,157.46,100.0]
[1718195550583,2.3399289,157.69,157.41,100.0]
[1718195550786,2.3399289,157.69,157.42,0.17]
[1718195550987,2.3399289,157.69,157.5,0.17]
[1718195551302,2.3399289,157.69,157.43,100.0]
[1718195551592,102.3399289,157.69,157.44,0.17]
[1718195551797,102.3399289,157.69,157.44,25.387856]
[1718195551798,100.0,157.61,157.44,25.387856]
[1718195552102,10.0,157.5,157.26,100.0]
[1718195552386,0.17,157.49,157.26,100.0]
[1718195552585,0.17,157.46,157.24,110.0]
[1718195552795,2.3485,157.55,157.32,100.0]
[1718195552988,29.8992,157.62,157.26,25.415295]
[1718195552989,4.696,157.58,157.26,125.415295]
[1718195553290,8.9365,157.46,157.16,110.0]
[1718195553466,100.0,157.46,157.2,100.0]
[1718195553663,25.426013,157.59,157.3,100.0]
[1718195554073,25.426013,157.59,157.32,100.0]
[1718195554295,10.0,157.56,157.31,100.0]
[1718195554807,10.0,157.56,157.34,0.17]
[1718195554983,10.0,157.56,157.36,0.17]
[1718195555177,10.0,157.56,157.36,0.68]
[1718195555410,10.0,157.56,157.34,0.51]
[1718195555411,10.0,157.56,157.34,0.17]
[1718195555604,10.0,157.56,157.43,100.0]
[1718195555785,10.0,157.56,157.41,100.0]
[1718195556107,8.9365,157.63,157.47,0.17]
[1718195556277,8.9365,157.63,157.48,100.0]
[1718195556478,8.9365,157.63,157.49,20.51]
[1718195556702,8.9365,157.63,157.5,100.17]
[1718195556904,8.9365,157.63,157.51,20.51]
[1718195557113,8.9365,157.63,157.49,20.0]
[1718195557278,8.9365,157.63,157.46,100.0]
[1718195557480,8.9365,157.63,157.53,0.17]
[1718195557801,8.9365,157.63,157.39,100.0]
[1718195558205,8.9365,157.63,157.37,10.0]
[1718195558206,4.6874289,157.62,157.38,100.0]
[1718195558375,2.3399289,157.62,157.32,110.0]
[1718195558685,32.3399289,157.62,157.33,100.0]
[1718195558888,3.0199289,157.61,157.36,100.0]
[1718195559082,23.0199289,157.61,157.36,100.0]
[1718195559283,2.3399289,157.61,157.42,100.0]
[1718195559480,8.9365,157.63,157.44,100.0]
[1718195559678,8.9365,157.63,157.45,100.0]
[1718195559898,8.9365,157.63,157.46,100.0]
[1718195560200,8.9365,157.63,157.47,20.51]
[1718195560591,8.9365,157.63,157.48,0.17]
[1718195560790,2.348,157.58,157.4,100.0]
[1718195560990,11.2764289,157.63,157.35,100.0]
[1718195561191,2.3399289,157.62,157.32,100.0]
[1718195561388,2.3399289,157.62,157.31,10.0]
[1718195561389,2.3399289,157.62,157.39,100.0]
[1718195561599,8.9365,157.63,157.43,100.0]
[1718195561806,8.9365,157.63,157.45,100.0]
[1718195562015,8.9365,157.63,157.42,100.0]
[1718195562389,8.9365,157.63,157.44,100.0]
[1718195562703,8.9365,157.63,157.5,100.0]
[1718195562895,1.6976997,157.73,157.57,100.0]
[1718195563098,1.6976997,157.73,157.58,20.0]
[1718195563412,1.6976997,157.73,157.72,100.17]
[1718195563611,10.0,157.94,157.78,100.0]
[1718195563816,0.1,158.0,157.79,100.17]
[1718195564017,0.1,158.0,157.82,100.0]
[1718195564229,0.1,158.0,157.83,20.0]
[1718195564388,0.1,158.0,157.87,100.0]
[1718195564593,0.1,158.0,157.88,120.0]
[1718195565106,0.1,158.0,157.88,20.0]
[1718195565304,0.1,158.0,157.82,8.8152]
[1718195565485,0.1,158.0,157.83,20.0]
[1718195566604,0.1,158.0,157.84,0.51]
[1718195566913,0.1,158.0,157.83,20.0]
[1718195567288,2.342,157.98,157.82,8.8152]
[1718195567594,0.1,158.0,157.82,8.8152]
[1718195567794,2.3428,157.93,157.71,100.0]
[1718195567994,2.3428,157.93,157.68,10.0]
[1718195567995,2.3399289,157.99,157.68,10.0]
[1718195568205,0.17,157.96,157.72,8.8152]
[1718195568510,9.3728,157.91,157.58,110.0]
[1718195568689,0.17,157.86,157.62,100.0]
[1718195568890,0.34,157.86,157.62,25.358797]
[1718195569112,0.17,157.83,157.62,25.358797]
[1718195569413,0.68,157.83,157.62,25.358797]
[1718195569592,8.6716,157.87,157.64,100.0]
[1718195569799,2.3441,157.85,157.62,25.358797]
[1718195570104,20.0,157.86,157.62,25.358797]
[1718195570304,8.6716,157.87,157.65,100.0]
[1718195570507,8.6716,157.87,157.68,100.0]
[1718195570711,8.6716,157.87,157.67,100.0]
[1718195570889,8.6716,157.87,157.63,100.0]
[1718195571087,8.6716,157.87,157.66,100.0]
[1718195571297,2.3399289,157.86,157.69,100.0]
[1718195571489,8.6716,157.87,157.7,20.0]
[1718195571900,8.6716,157.87,157.67,100.0]
[1718195572106,8.6716,157.87,157.68,20.0]
[1718195572290,8.6716,157.87,157.65,100.0]
[1718195572489,7.0277289,157.86,157.62,25.358797]
[1718195572693,2.3446,157.81,157.58,10.0]
[1718195572937,2.3399289,157.86,157.59,100.0]
[1718195573108,27.0276289,157.86,157.59,9.3743]
[1718195573314,0.17,157.84,157.59,9.3743]
[1718195573515,0.34,157.84,157.6,100.0]
[1718195573833,2.3399289,157.86,157.62,100.0]
[1718195573990,2.3399289,157.86,157.6,100.0]
[1718195574191,2.344,157.85,157.6,100.0]
[1718195574403,2.3399289,157.86,157.59,9.3743]
[1718195574404,2.3399289,157.86,157.62,100.0]
[1718195574606,7.0277289,157.86,157.6,100.0]
[1718195574911,2.3399289,157.86,157.59,9.3743]
[1718195575111,2.3399289,157.86,157.63,100.0]